[Event "Titled Tuesday Blitz January 03 Early 2023"]
[White "Shimanov, Aleksandr"]
[Black "Boruchovsky, Avital"]
[WhiteFideId "4198603"]
[BlackFideId "2800055"]
[WhiteElo "2581"]
[BlackElo "2539"]
[Result "1-0"]
[Round "06"]
[TimeControl "180+2"]
[Date "2023.01.03"]
[WhiteClock "0:00:15"]
[BlackClock "0:00:07"]

1. e4 {[%clk 0:03:00]}  e6 {[%clk 0:02:56]} 2. d4 {[%clk 0:03:00]}  d5 {[%clk 0:02:57]} 3. Nc3 {[%clk 0:03:01]}  Bb4 {[%clk 0:02:56]} 4. Ne2 {[%clk 0:03:01]}  dxe4 {[%clk 0:02:53]} 5. a3 {[%clk 0:03:01]}  Bxc3+ {[%clk 0:02:53]} 6. Nxc3 {[%clk 0:03:02]}  Nc6 {[%clk 0:02:48]} 7. Bf4 {[%clk 0:03:02]}  Nf6 {[%clk 0:02:42]} 8. Bb5 {[%clk 0:03:01]}  Bd7 {[%clk 0:02:41]} 9. d5 {[%clk 0:03:00]}  exd5 {[%clk 0:02:40]} 10. Nxd5 {[%clk 0:03:00]}  Nxd5 {[%clk 0:02:39]} 11. Qxd5 {[%clk 0:03:01]}  O-O {[%clk 0:02:16]} 12. O-O-O {[%clk 0:03:00]}  a6 {[%clk 0:02:08]} 13. Ba4 {[%clk 0:02:06]}  Qf6 {[%clk 0:01:41]} 14. Bxc7 {[%clk 0:01:41]}  Be6 {[%clk 0:01:39]} 15. Qxe4 {[%clk 0:01:35]}  Rac8 {[%clk 0:01:39]} 16. Bd6 {[%clk 0:01:24]}  Rfe8 {[%clk 0:01:21]} 17. Bxc6 {[%clk 0:01:11]}  Rxc6 {[%clk 0:01:20]} 18. Rd2 {[%clk 0:00:56]}  Rec8 {[%clk 0:01:13]} 19. Re1 {[%clk 0:00:48]}  h6 {[%clk 0:01:07]} 20. Be5 {[%clk 0:00:44]}  Qe7 {[%clk 0:00:50]} 21. Kb1 {[%clk 0:00:43]}  Qc5 {[%clk 0:00:45]} 22. Qb4 {[%clk 0:00:39]}  Qxb4 {[%clk 0:00:37]} 23. axb4 {[%clk 0:00:40]}  Rb6 {[%clk 0:00:35]} 24. Bd6 {[%clk 0:00:34]}  Rb5 {[%clk 0:00:26]} 25. b3 {[%clk 0:00:30]}  a5 {[%clk 0:00:23]} 26. Kb2 {[%clk 0:00:28]}  axb4 {[%clk 0:00:22]} 27. Re4 {[%clk 0:00:28]}  Rd5 {[%clk 0:00:14]} 28. Red4 {[%clk 0:00:26]}  Rxd4 {[%clk 0:00:10]} 29. Rxd4 {[%clk 0:00:27]}  Bf5 {[%clk 0:00:10]} 30. Rd2 {[%clk 0:00:26]}  Rc6 {[%clk 0:00:10]} 31. Bxb4 {[%clk 0:00:25]}  g5 {[%clk 0:00:11]} 32. c4 {[%clk 0:00:23]}  Kg7 {[%clk 0:00:11]} 33. Bc3+ {[%clk 0:00:22]}  Kg6 {[%clk 0:00:11]} 34. Rd5 {[%clk 0:00:19]}  Be6 {[%clk 0:00:11]} 35. Rb5 {[%clk 0:00:19]}  Rc7 {[%clk 0:00:12]} 36. Bd4 {[%clk 0:00:20]}  Rd7 {[%clk 0:00:12]} 37. Kc3 {[%clk 0:00:19]}  h5 {[%clk 0:00:12]} 38. Be3 {[%clk 0:00:17]}  f6 {[%clk 0:00:12]} 39. Rb6 {[%clk 0:00:18]}  Kf5 {[%clk 0:00:10]} 40. Bd4 {[%clk 0:00:18]}  h4 {[%clk 0:00:10]} 41. f3 {[%clk 0:00:17]}  Re7 {[%clk 0:00:10]} 42. g3 {[%clk 0:00:17]}  hxg3 {[%clk 0:00:11]} 43. hxg3 {[%clk 0:00:18]}  Kg6 {[%clk 0:00:11]} 44. b4 {[%clk 0:00:17]}  Kf7 {[%clk 0:00:11]} 45. b5 {[%clk 0:00:17]}  Rc7 {[%clk 0:00:11]} 46. c5 {[%clk 0:00:17]}  Rd7 {[%clk 0:00:11]} 47. f4 {[%clk 0:00:16]}  gxf4 {[%clk 0:00:11]} 48. gxf4 {[%clk 0:00:17]}  f5 {[%clk 0:00:07]} 49. Be5 {[%clk 0:00:17]}  Bd5 {[%clk 0:00:06]} 50. Rf6+ {[%clk 0:00:16]}  Ke7 {[%clk 0:00:07]} 51. Rxf5 {[%clk 0:00:15]}  Be4 {[%clk 0:00:07]} 52. Bd6+ {[%clk 0:00:15]} 1-0


[Site "https://www.chess.com"]

[Event "Titled Tuesday Blitz January 03 Early 2023"]
[White "Terry, Renato"]
[Black "Rostomyan, Mikayel"]
[WhiteFideId "3803457"]
[BlackFideId "13313754"]
[WhiteElo "2520"]
[BlackElo "2222"]
[Result "1-0"]
[Round "06"]
[TimeControl "180+2"]
[Date "2023.01.03"]
[WhiteClock "0:00:30"]
[BlackClock "0:00:05"]

1. d4 {[%clk 0:03:00]}  Nf6 {[%clk 0:02:59]} 2. Nf3 {[%clk 0:03:01]}  c5 {[%clk 0:02:59]} 3. d5 {[%clk 0:03:01]}  b5 {[%clk 0:03:00]} 4. Bg5 {[%clk 0:03:00]}  g6 {[%clk 0:02:54]} 5. Bxf6 {[%clk 0:02:59]}  exf6 {[%clk 0:02:54]} 6. e4 {[%clk 0:02:59]}  b4 {[%clk 0:02:52]} 7. a3 {[%clk 0:02:56]}  Bg7 {[%clk 0:02:40]} 8. axb4 {[%clk 0:02:47]}  cxb4 {[%clk 0:02:41]} 9. Nbd2 {[%clk 0:02:47]}  O-O {[%clk 0:02:39]} 10. Bd3 {[%clk 0:02:40]}  f5 {[%clk 0:02:32]} 11. O-O {[%clk 0:02:40]}  fxe4 {[%clk 0:02:26]} 12. Nxe4 {[%clk 0:02:39]}  Bxb2 {[%clk 0:02:24]} 13. Rb1 {[%clk 0:02:39]}  Bg7 {[%clk 0:02:24]} 14. Rxb4 {[%clk 0:02:38]}  a5 {[%clk 0:02:24]} 15. Ra4 {[%clk 0:02:37]}  d6 {[%clk 0:02:23]} 16. Bb5 {[%clk 0:02:34]}  Nd7 {[%clk 0:02:17]} 17. Qd2 {[%clk 0:02:29]}  Nb6 {[%clk 0:02:01]} 18. Ra2 {[%clk 0:02:25]}  Qc7 {[%clk 0:01:36]} 19. c4 {[%clk 0:02:07]}  Bd7 {[%clk 0:00:57]} 20. Rc1 {[%clk 0:01:59]}  Bxb5 {[%clk 0:00:37]} 21. cxb5 {[%clk 0:01:59]}  Qb7 {[%clk 0:00:37]} 22. Rc6 {[%clk 0:01:57]}  Rfd8 {[%clk 0:00:27]} 23. h3 {[%clk 0:01:50]}  a4 {[%clk 0:00:26]} 24. h4 {[%clk 0:01:24]}  h5 {[%clk 0:00:22]} 25. Qd3 {[%clk 0:01:17]}  Nc8 {[%clk 0:00:19]} 26. Qc4 {[%clk 0:01:14]}  Ne7 {[%clk 0:00:17]} 27. Nxd6 {[%clk 0:01:10]}  Qd7 {[%clk 0:00:15]} 28. Ne4 {[%clk 0:00:56]}  Qxd5 {[%clk 0:00:13]} 29. Qxd5 {[%clk 0:00:55]}  Nxd5 {[%clk 0:00:14]} 30. Rc4 {[%clk 0:00:52]}  a3 {[%clk 0:00:14]} 31. Nfg5 {[%clk 0:00:51]}  Bb2 {[%clk 0:00:13]} 32. g3 {[%clk 0:00:49]}  Rac8 {[%clk 0:00:12]} 33. Ra4 {[%clk 0:00:48]}  Nc3 {[%clk 0:00:10]} 34. R2xa3 {[%clk 0:00:44]}  Bxa3 {[%clk 0:00:07]} 35. Rxa3 {[%clk 0:00:45]}  Nxe4 {[%clk 0:00:08]} 36. Nxe4 {[%clk 0:00:44]}  Rb8 {[%clk 0:00:08]} 37. Rb3 {[%clk 0:00:44]}  Kg7 {[%clk 0:00:08]} 38. b6 {[%clk 0:00:43]}  Rdc8 {[%clk 0:00:05]} 39. Rb5 {[%clk 0:00:30]}  Rc1+ {[%clk 0:00:05]} 40. Kg2 {[%clk 0:00:30]}  Rc6 {[%clk 0:00:06]} 41. b7 {[%clk 0:00:30]}  Rc7 {[%clk 0:00:07]} 42. Nc5 {[%clk 0:00:31]}  f6 {[%clk 0:00:05]} 43. Ne6+ {[%clk 0:00:30]} 1-0


[Site "https://www.chess.com"]

[Event "Titled Tuesday Blitz January 03 Early 2023"]
[White "Molina, Roberto Junio Brito"]
[Black "Ibarra Jerez, Jose Carlos"]
[WhiteFideId "2109450"]
[BlackFideId "2226332"]
[WhiteElo "2403"]
[BlackElo "2563"]
[Result "1/2-1/2"]
[Round "06"]
[TimeControl "180+2"]
[Date "2023.01.03"]
[WhiteClock "0:00:06"]
[BlackClock "0:00:05"]

1. d4 {[%clk 0:03:00]}  Nf6 {[%clk 0:02:59]} 2. c4 {[%clk 0:02:57]}  d6 {[%clk 0:03:00]} 3. Nf3 {[%clk 0:02:57]}  g6 {[%clk 0:03:00]} 4. Nc3 {[%clk 0:02:56]}  Bf5 {[%clk 0:03:00]} 5. g3 {[%clk 0:02:53]}  Ne4 {[%clk 0:03:00]} 6. Nxe4 {[%clk 0:02:51]}  Bxe4 {[%clk 0:03:01]} 7. Bg2 {[%clk 0:02:51]}  Bg7 {[%clk 0:03:01]} 8. O-O {[%clk 0:02:51]}  O-O {[%clk 0:03:01]} 9. Be3 {[%clk 0:02:50]}  c5 {[%clk 0:03:02]} 10. Qd2 {[%clk 0:02:49]}  Qb6 {[%clk 0:03:01]} 11. dxc5 {[%clk 0:02:38]}  dxc5 {[%clk 0:03:00]} 12. Bh6 {[%clk 0:02:32]}  Nc6 {[%clk 0:02:01]} 13. Bxg7 {[%clk 0:02:31]}  Kxg7 {[%clk 0:02:02]} 14. Qc3+ {[%clk 0:02:27]}  Kg8 {[%clk 0:02:02]} 15. Rad1 {[%clk 0:02:19]}  Rad8 {[%clk 0:02:01]} 16. Ne5 {[%clk 0:02:07]}  Nd4 {[%clk 0:01:51]} 17. Rd2 {[%clk 0:01:58]}  Qe6 {[%clk 0:01:42]} 18. f4 {[%clk 0:01:40]}  Bxg2 {[%clk 0:01:37]} 19. Kxg2 {[%clk 0:01:41]}  f6 {[%clk 0:01:34]} 20. Nf3 {[%clk 0:01:13]}  Nxe2 {[%clk 0:01:32]} 21. Re1 {[%clk 0:01:01]}  Nxc3 {[%clk 0:01:22]} 22. Rxe6 {[%clk 0:01:00]}  Rxd2+ {[%clk 0:01:18]} 23. Nxd2 {[%clk 0:01:01]}  Kf7 {[%clk 0:01:17]} 24. Re3 {[%clk 0:00:59]}  Rd8 {[%clk 0:01:15]} 25. Nb3 {[%clk 0:00:55]}  Nxa2 {[%clk 0:01:12]} 26. Nxc5 {[%clk 0:00:54]}  Rd2+ {[%clk 0:01:11]} 27. Kf3 {[%clk 0:00:55]}  Rxb2 {[%clk 0:01:09]} 28. Rd3 {[%clk 0:00:51]}  b6 {[%clk 0:00:58]} 29. Ne4 {[%clk 0:00:49]}  Ke8 {[%clk 0:00:55]} 30. c5 {[%clk 0:00:45]}  f5 {[%clk 0:00:45]} 31. Ng5 {[%clk 0:00:45]}  bxc5 {[%clk 0:00:45]} 32. Ne6 {[%clk 0:00:45]}  c4 {[%clk 0:00:36]} 33. Rd8+ {[%clk 0:00:42]}  Kf7 {[%clk 0:00:36]} 34. Ng5+ {[%clk 0:00:42]}  Kg7 {[%clk 0:00:37]} 35. Rd7 {[%clk 0:00:40]}  Rb3+ {[%clk 0:00:32]} 36. Kf2 {[%clk 0:00:39]}  Kf6 {[%clk 0:00:33]} 37. Rxa7 {[%clk 0:00:36]}  Nc3 {[%clk 0:00:28]} 38. Nxh7+ {[%clk 0:00:30]}  Ke6 {[%clk 0:00:28]} 39. Nf8+ {[%clk 0:00:29]}  Kf7 {[%clk 0:00:27]} 40. Nd7 {[%clk 0:00:29]}  Ne4+ {[%clk 0:00:27]} 41. Ke2 {[%clk 0:00:29]}  Rb2+ {[%clk 0:00:23]} 42. Ke3 {[%clk 0:00:29]}  Ke6 {[%clk 0:00:19]} 43. Ne5 {[%clk 0:00:26]}  g5 {[%clk 0:00:14]} 44. Nxc4 {[%clk 0:00:23]}  Rxh2 {[%clk 0:00:13]} 45. fxg5 {[%clk 0:00:18]}  Rg2 {[%clk 0:00:09]} 46. Kf4 {[%clk 0:00:17]}  Rf2+ {[%clk 0:00:08]} 47. Ke3 {[%clk 0:00:17]}  Rg2 {[%clk 0:00:07]} 48. Kf4 {[%clk 0:00:16]}  Rf2+ {[%clk 0:00:07]} 49. Ke3 {[%clk 0:00:16]}  Rc2 {[%clk 0:00:08]} 50. Ra6+ {[%clk 0:00:16]}  Kd5 {[%clk 0:00:08]} 51. Nb6+ {[%clk 0:00:16]}  Kc5 {[%clk 0:00:07]} 52. Nd7+ {[%clk 0:00:16]}  Kb5 {[%clk 0:00:06]} 53. Rb6+ {[%clk 0:00:15]}  Ka5 {[%clk 0:00:06]} 54. Re6 {[%clk 0:00:15]}  Nxg5 {[%clk 0:00:03]} 55. Rxe7 {[%clk 0:00:14]}  Rc3+ {[%clk 0:00:03]} 56. Kf4 {[%clk 0:00:14]}  Ne4 {[%clk 0:00:03]} 57. Re5+ {[%clk 0:00:13]}  Kb4 {[%clk 0:00:02]} 58. g4 {[%clk 0:00:13]}  Nf2 {[%clk 0:00:02]} 59. Rxf5 {[%clk 0:00:09]}  Rc4+ {[%clk 0:00:02]} 60. Kf3 {[%clk 0:00:09]}  Nxg4 {[%clk 0:00:03]} 61. Nb6 {[%clk 0:00:07]}  Nh6 {[%clk 0:00:03]} 62. Rh5 {[%clk 0:00:05]}  Rc3+ {[%clk 0:00:03]} 63. Ke4 {[%clk 0:00:05]}  Rc6 {[%clk 0:00:04]} 64. Nd5+ {[%clk 0:00:05]}  Kb3 {[%clk 0:00:04]} 65. Ne7 {[%clk 0:00:05]}  Re6+ {[%clk 0:00:04]} 66. Kd5 {[%clk 0:00:05]}  Rxe7 {[%clk 0:00:04]} 67. Rxh6 {[%clk 0:00:05]}  Rd7+ {[%clk 0:00:05]} 68. Rd6 {[%clk 0:00:05]}  Rxd6+ {[%clk 0:00:05]} 69. Kxd6 {[%clk 0:00:06]} 1/2-1/2


[Site "https://www.chess.com"]

[Event "Titled Tuesday Blitz January 03 Early 2023"]
[White "Khoroshev, Nikita"]
[Black "Xu, Yi"]
[WhiteFideId "14200287"]
[BlackFideId "8605564"]
[WhiteElo "2336"]
[BlackElo "2527"]
[Result "1/2-1/2"]
[Round "06"]
[TimeControl "180+2"]
[Date "2023.01.03"]
[WhiteClock "0:00:12"]
[BlackClock "0:00:03"]

1. e4 {[%clk 0:02:57]}  c5 {[%clk 0:03:00]} 2. c3 {[%clk 0:02:45]}  Nf6 {[%clk 0:02:57]} 3. e5 {[%clk 0:02:44]}  Nd5 {[%clk 0:02:58]} 4. d4 {[%clk 0:02:44]}  cxd4 {[%clk 0:02:58]} 5. Nf3 {[%clk 0:02:45]}  Nc6 {[%clk 0:02:58]} 6. Bc4 {[%clk 0:02:44]}  Nb6 {[%clk 0:02:58]} 7. Bb3 {[%clk 0:02:43]}  d6 {[%clk 0:02:46]} 8. exd6 {[%clk 0:02:36]}  Qxd6 {[%clk 0:02:43]} 9. cxd4 {[%clk 0:02:29]}  Be6 {[%clk 0:02:33]} 10. O-O {[%clk 0:02:22]}  Bxb3 {[%clk 0:02:26]} 11. Qxb3 {[%clk 0:02:21]}  e6 {[%clk 0:02:25]} 12. Rd1 {[%clk 0:02:12]}  Be7 {[%clk 0:02:25]} 13. Nc3 {[%clk 0:02:12]}  O-O {[%clk 0:02:24]} 14. a4 {[%clk 0:02:02]}  Qb4 {[%clk 0:02:10]} 15. Qa2 {[%clk 0:01:54]}  Na5 {[%clk 0:01:57]} 16. Bd2 {[%clk 0:01:35]}  Qb3 {[%clk 0:01:57]} 17. Nb5 {[%clk 0:01:28]}  Qxa2 {[%clk 0:01:56]} 18. Rxa2 {[%clk 0:01:29]}  Nac4 {[%clk 0:01:49]} 19. Be1 {[%clk 0:01:20]}  Nd5 {[%clk 0:01:45]} 20. b3 {[%clk 0:01:18]}  Nd6 {[%clk 0:01:42]} 21. Rc1 {[%clk 0:01:08]}  Nxb5 {[%clk 0:01:38]} 22. axb5 {[%clk 0:01:07]}  a6 {[%clk 0:01:35]} 23. Rca1 {[%clk 0:01:04]}  Rab8 {[%clk 0:01:31]} 24. bxa6 {[%clk 0:00:50]}  bxa6 {[%clk 0:01:32]} 25. Rb1 {[%clk 0:00:44]}  Rb6 {[%clk 0:01:16]} 26. Ba5 {[%clk 0:00:43]}  Rb5 {[%clk 0:01:16]} 27. Bd2 {[%clk 0:00:43]}  Rfb8 {[%clk 0:01:09]} 28. Rxa6 {[%clk 0:00:42]}  Rxb3 {[%clk 0:01:07]} 29. Rxb3 {[%clk 0:00:43]}  Rxb3 {[%clk 0:01:07]} 30. Ra8+ {[%clk 0:00:44]}  Bf8 {[%clk 0:01:08]} 31. h3 {[%clk 0:00:42]}  f6 {[%clk 0:01:05]} 32. Ra7 {[%clk 0:00:39]}  Be7 {[%clk 0:01:04]} 33. Kf1 {[%clk 0:00:37]}  Kf7 {[%clk 0:01:04]} 34. Ke2 {[%clk 0:00:37]}  h5 {[%clk 0:01:02]} 35. Ne1 {[%clk 0:00:35]}  g5 {[%clk 0:00:54]} 36. Nd3 {[%clk 0:00:33]}  Kg6 {[%clk 0:00:48]} 37. Ra6 {[%clk 0:00:31]}  Kf7 {[%clk 0:00:47]} 38. f3 {[%clk 0:00:28]}  h4 {[%clk 0:00:46]} 39. Nc5 {[%clk 0:00:21]}  Rb2 {[%clk 0:00:33]} 40. Kd3 {[%clk 0:00:18]}  Rb6 {[%clk 0:00:23]} 41. Rxb6 {[%clk 0:00:18]}  Nxb6 {[%clk 0:00:23]} 42. Nb3 {[%clk 0:00:14]}  Nd5 {[%clk 0:00:23]} 43. Na5 {[%clk 0:00:14]}  Bb4 {[%clk 0:00:16]} 44. Nc4 {[%clk 0:00:11]}  Bxd2 {[%clk 0:00:14]} 45. Kxd2 {[%clk 0:00:12]}  Nf4 {[%clk 0:00:14]} 46. Ne3 {[%clk 0:00:13]}  Ke7 {[%clk 0:00:08]} 47. Kc3 {[%clk 0:00:13]}  f5 {[%clk 0:00:07]} 48. Kc4 {[%clk 0:00:13]}  g4 {[%clk 0:00:04]} 49. fxg4 {[%clk 0:00:12]}  fxg4 {[%clk 0:00:04]} 50. Nxg4 {[%clk 0:00:12]}  Nxg2 {[%clk 0:00:04]} 51. Nf2 {[%clk 0:00:11]}  Nf4 {[%clk 0:00:04]} 52. Kc3 {[%clk 0:00:10]}  Kd6 {[%clk 0:00:04]} 53. Kd2 {[%clk 0:00:10]}  Kd5 {[%clk 0:00:04]} 54. Ke3 {[%clk 0:00:11]}  e5 {[%clk 0:00:03]} 55. dxe5 {[%clk 0:00:11]}  Nxh3 {[%clk 0:00:02]} 56. Nxh3 {[%clk 0:00:10]}  Kxe5 {[%clk 0:00:03]} 57. Nf4 {[%clk 0:00:11]}  h3 {[%clk 0:00:03]} 58. Nxh3 {[%clk 0:00:12]} 1/2-1/2


[Site "https://www.chess.com"]

[Event "Titled Tuesday Blitz January 03 Early 2023"]
[White "Grigoriants, Sergey"]
[Black "Khumalo, Keith"]
[WhiteFideId "4130804"]
[BlackFideId "14319470"]
[WhiteElo "2562"]
[BlackElo "2099"]
[Result "1-0"]
[Round "06"]
[TimeControl "180+2"]
[Date "2023.01.03"]
[WhiteClock "0:00:23"]
[BlackClock "0:00:12"]

1. c4 {[%clk 0:02:52]}  Nf6 {[%clk 0:02:59]} 2. Nc3 {[%clk 0:02:50]}  g6 {[%clk 0:02:47]} 3. e4 {[%clk 0:02:50]}  d6 {[%clk 0:02:47]} 4. d4 {[%clk 0:02:50]}  Bg7 {[%clk 0:02:48]} 5. h3 {[%clk 0:02:48]}  O-O {[%clk 0:02:48]} 6. Be3 {[%clk 0:02:49]}  c5 {[%clk 0:02:49]} 7. d5 {[%clk 0:02:41]}  Qa5 {[%clk 0:02:48]} 8. Qd2 {[%clk 0:02:31]}  e6 {[%clk 0:02:48]} 9. Bd3 {[%clk 0:02:26]}  exd5 {[%clk 0:02:48]} 10. exd5 {[%clk 0:02:27]}  Re8 {[%clk 0:02:49]} 11. Nge2 {[%clk 0:02:24]}  Nbd7 {[%clk 0:02:37]} 12. f4 {[%clk 0:02:15]}  a6 {[%clk 0:02:28]} 13. O-O {[%clk 0:02:11]}  Qc7 {[%clk 0:02:23]} 14. Ng3 {[%clk 0:01:59]}  Rb8 {[%clk 0:02:19]} 15. Kh2 {[%clk 0:01:54]}  b5 {[%clk 0:02:16]} 16. cxb5 {[%clk 0:01:52]}  c4 {[%clk 0:02:16]} 17. b6 {[%clk 0:01:41]}  Nxb6 {[%clk 0:02:16]} 18. Be2 {[%clk 0:01:42]}  Bd7 {[%clk 0:02:00]} 19. Bf3 {[%clk 0:01:41]}  Na4 {[%clk 0:02:00]} 20. Nxa4 {[%clk 0:01:36]}  Bxa4 {[%clk 0:02:01]} 21. Bd4 {[%clk 0:01:37]}  Bb5 {[%clk 0:01:58]} 22. Rf2 {[%clk 0:01:35]}  h5 {[%clk 0:01:48]} 23. Qc3 {[%clk 0:01:31]}  Qd8 {[%clk 0:01:35]} 24. f5 {[%clk 0:01:13]}  h4 {[%clk 0:01:33]} 25. Nf1 {[%clk 0:01:11]}  gxf5 {[%clk 0:01:22]} 26. Ne3 {[%clk 0:01:03]}  Ne4 {[%clk 0:01:12]} 27. Bxe4 {[%clk 0:01:03]}  Bxd4 {[%clk 0:01:13]} 28. Qxd4 {[%clk 0:01:04]}  Rxe4 {[%clk 0:01:13]} 29. Qc3 {[%clk 0:01:05]}  Qg5 {[%clk 0:00:53]} 30. Nxf5 {[%clk 0:01:01]}  Re5 {[%clk 0:00:52]} 31. Nxd6 {[%clk 0:00:42]}  Qg3+ {[%clk 0:00:38]} 32. Qxg3+ {[%clk 0:00:39]}  hxg3+ {[%clk 0:00:38]} 33. Kxg3 {[%clk 0:00:40]}  Rxd5 {[%clk 0:00:39]} 34. Ne4 {[%clk 0:00:40]}  Kg7 {[%clk 0:00:38]} 35. Raf1 {[%clk 0:00:31]}  Rb7 {[%clk 0:00:34]} 36. Nc3 {[%clk 0:00:30]}  Rd3+ {[%clk 0:00:34]} 37. Kh2 {[%clk 0:00:29]}  Bc6 {[%clk 0:00:34]} 38. Re1 {[%clk 0:00:25]}  Kg6 {[%clk 0:00:30]} 39. Ree2 {[%clk 0:00:25]}  a5 {[%clk 0:00:27]} 40. Rf4 {[%clk 0:00:25]}  Rb4 {[%clk 0:00:20]} 41. a3 {[%clk 0:00:26]}  Rb7 {[%clk 0:00:18]} 42. Ref2 {[%clk 0:00:24]}  Re7 {[%clk 0:00:13]} 43. Rf6+ {[%clk 0:00:24]}  Kg7 {[%clk 0:00:13]} 44. Rxc6 {[%clk 0:00:24]}  Ree3 {[%clk 0:00:12]} 45. Rxc4 {[%clk 0:00:23]} 1-0


[Site "https://www.chess.com"]

[Event "Titled Tuesday Blitz January 03 Early 2023"]
[White "Zierk, Steven"]
[Black "Sadykov, Ramil"]
[WhiteFideId "2034255"]
[BlackFideId "24113590"]
[WhiteElo "2488"]
[BlackElo "2345"]
[Result "1-0"]
[Round "06"]
[TimeControl "180+2"]
[Date "2023.01.03"]
[WhiteClock "0:00:10"]
[BlackClock "0:00:01"]

1. e4 {[%clk 0:02:59]}  c5 {[%clk 0:02:53]} 2. Nf3 {[%clk 0:02:58]}  e6 {[%clk 0:02:39]} 3. d4 {[%clk 0:02:58]}  cxd4 {[%clk 0:02:40]} 4. Nxd4 {[%clk 0:02:59]}  Nf6 {[%clk 0:02:40]} 5. Nc3 {[%clk 0:02:58]}  Nc6 {[%clk 0:02:41]} 6. Ndb5 {[%clk 0:02:58]}  Bb4 {[%clk 0:02:40]} 7. a3 {[%clk 0:02:58]}  Bxc3+ {[%clk 0:02:40]} 8. Nxc3 {[%clk 0:02:59]}  d5 {[%clk 0:02:41]} 9. exd5 {[%clk 0:02:59]}  exd5 {[%clk 0:02:42]} 10. Bd3 {[%clk 0:03:00]}  O-O {[%clk 0:02:42]} 11. O-O {[%clk 0:02:59]}  Bg4 {[%clk 0:02:40]} 12. f3 {[%clk 0:02:57]}  Bh5 {[%clk 0:02:26]} 13. Bg5 {[%clk 0:02:47]}  Qb6+ {[%clk 0:02:24]} 14. Kh1 {[%clk 0:02:46]}  Ne4 {[%clk 0:02:25]} 15. Nxe4 {[%clk 0:02:27]}  dxe4 {[%clk 0:02:25]} 16. Bxe4 {[%clk 0:02:28]}  Qxb2 {[%clk 0:02:26]} 17. Rb1 {[%clk 0:02:27]}  Qxa3 {[%clk 0:02:25]} 18. Rxb7 {[%clk 0:02:27]}  Qa6 {[%clk 0:02:26]} 19. Rc7 {[%clk 0:02:00]}  Rac8 {[%clk 0:02:25]} 20. Rxc8 {[%clk 0:01:59]}  Rxc8 {[%clk 0:02:25]} 21. Bf5 {[%clk 0:01:58]}  Rf8 {[%clk 0:02:09]} 22. Re1 {[%clk 0:01:53]}  Bg6 {[%clk 0:02:04]} 23. Bd7 {[%clk 0:01:47]}  Qc4 {[%clk 0:01:54]} 24. Qd6 {[%clk 0:01:39]}  Qb4 {[%clk 0:01:24]} 25. Rd1 {[%clk 0:01:05]}  Qxd6 {[%clk 0:01:12]} 26. Rxd6 {[%clk 0:01:04]}  Ne5 {[%clk 0:00:58]} 27. Ba4 {[%clk 0:00:59]}  Rc8 {[%clk 0:00:38]} 28. Bf4 {[%clk 0:00:55]}  Nc4 {[%clk 0:00:33]} 29. Rd4 {[%clk 0:00:45]}  h6 {[%clk 0:00:25]} 30. h4 {[%clk 0:00:35]}  Nb6 {[%clk 0:00:24]} 31. Bb5 {[%clk 0:00:31]}  Bxc2 {[%clk 0:00:22]} 32. Kh2 {[%clk 0:00:25]}  Bf5 {[%clk 0:00:22]} 33. g4 {[%clk 0:00:24]}  Be6 {[%clk 0:00:22]} 34. Kg3 {[%clk 0:00:23]}  a5 {[%clk 0:00:15]} 35. h5 {[%clk 0:00:18]}  Bc4 {[%clk 0:00:13]} 36. Bxc4 {[%clk 0:00:12]}  Rxc4 {[%clk 0:00:10]} 37. Rd6 {[%clk 0:00:12]}  Rb4 {[%clk 0:00:04]} 38. Bd2 {[%clk 0:00:12]}  Rb5 {[%clk 0:00:02]} 39. Rd8+ {[%clk 0:00:10]}  Kh7 {[%clk 0:00:03]} 40. Rb8 {[%clk 0:00:11]}  Rb2 {[%clk 0:00:01]} 41. Bc3 {[%clk 0:00:10]}  Rb3 {[%clk 0:00:02]} 42. Bxa5 {[%clk 0:00:10]}  Rb5 {[%clk 0:00:01]} 43. Bxb6 {[%clk 0:00:10]} 1-0


[Site "https://www.chess.com"]

[Event "Titled Tuesday Blitz January 03 Early 2023"]
[White "Deac, Bogdan-Daniel"]
[Black "Hnydiuk, Aleksander"]
[WhiteFideId "1226380"]
[BlackFideId "1109057"]
[WhiteElo "2700"]
[BlackElo "2363"]
[Result "1-0"]
[Round "06"]
[TimeControl "180+2"]
[Date "2023.01.03"]
[WhiteClock "0:00:56"]
[BlackClock "0:00:02"]

1. b3 {[%clk 0:02:45]}  d5 {[%clk 0:02:56]} 2. Bb2 {[%clk 0:02:45]}  Bf5 {[%clk 0:02:56]} 3. e3 {[%clk 0:02:44]}  e6 {[%clk 0:02:56]} 4. c4 {[%clk 0:02:45]}  Nf6 {[%clk 0:02:55]} 5. cxd5 {[%clk 0:02:45]}  exd5 {[%clk 0:02:54]} 6. Qf3 {[%clk 0:02:46]}  Bg6 {[%clk 0:02:35]} 7. Bxf6 {[%clk 0:02:45]}  gxf6 {[%clk 0:02:34]} 8. Nc3 {[%clk 0:02:40]}  c6 {[%clk 0:02:33]} 9. a3 {[%clk 0:02:32]}  Nd7 {[%clk 0:02:33]} 10. Qd1 {[%clk 0:02:28]}  a5 {[%clk 0:02:30]} 11. Nf3 {[%clk 0:02:26]}  Bd6 {[%clk 0:02:21]} 12. d4 {[%clk 0:02:26]}  Qe7 {[%clk 0:02:00]} 13. Qc1 {[%clk 0:02:25]}  f5 {[%clk 0:01:55]} 14. Be2 {[%clk 0:02:24]}  Nf6 {[%clk 0:01:24]} 15. g3 {[%clk 0:02:23]}  Ne4 {[%clk 0:01:23]} 16. Nxe4 {[%clk 0:02:22]}  fxe4 {[%clk 0:01:22]} 17. Nh4 {[%clk 0:02:22]}  Qg5 {[%clk 0:01:15]} 18. O-O {[%clk 0:02:18]}  Bh5 {[%clk 0:01:10]} 19. Qd1 {[%clk 0:02:11]}  Bxe2 {[%clk 0:01:07]} 20. Qxe2 {[%clk 0:02:12]}  O-O {[%clk 0:00:56]} 21. f4 {[%clk 0:02:07]}  Qf6 {[%clk 0:00:53]} 22. Qh5 {[%clk 0:02:05]}  Kh8 {[%clk 0:00:52]} 23. g4 {[%clk 0:02:01]}  Rg8 {[%clk 0:00:46]} 24. Kh1 {[%clk 0:02:01]}  Qe6 {[%clk 0:00:32]} 25. Nf5 {[%clk 0:01:54]}  Bf8 {[%clk 0:00:31]} 26. Rg1 {[%clk 0:01:51]}  Rg6 {[%clk 0:00:27]} 27. Rg3 {[%clk 0:01:50]}  b5 {[%clk 0:00:24]} 28. a4 {[%clk 0:01:50]}  c5 {[%clk 0:00:15]} 29. axb5 {[%clk 0:01:45]}  c4 {[%clk 0:00:15]} 30. bxc4 {[%clk 0:01:04]}  dxc4 {[%clk 0:00:16]} 31. Rgg1 {[%clk 0:01:04]}  a4 {[%clk 0:00:14]} 32. Rgd1 {[%clk 0:01:01]}  Qd5 {[%clk 0:00:09]} 33. b6 {[%clk 0:00:58]}  a3 {[%clk 0:00:06]} 34. Rdc1 {[%clk 0:00:56]}  Rxb6 {[%clk 0:00:05]} 35. Qh4 {[%clk 0:00:56]}  a2 {[%clk 0:00:04]} 36. Qf2 {[%clk 0:00:56]}  Rba6 {[%clk 0:00:02]} 37. Rc2 {[%clk 0:00:56]} 1-0


[Site "https://www.chess.com"]